Department,Entity,Date of Payment,Expense Type,Expense Area,Supplier,Transaction Number,Amount,Description,Supplier Postcode
"Department for Business, Innovation and Skills",UK Shared Business Services Ltd,03/10/2022,Recruitment Costs,Corporate HR,Everwell Occupational Health Ltd,99812592,336.00,Professional Services,CW11 3AE
"Department for Business, Innovation and Skills",UK Shared Business Services Ltd,03/10/2022,Contract Staff,Project Office,Alexander Mann Solutions Ltd,99813267,"5,108.80",Recruitment Services,EC2N 3AQ
"Department for Business, Innovation and Skills",UK Shared Business Services Ltd,03/10/2022,Contract Staff,Production Services,Alexander Mann Solutions Ltd,99813282,"8,622.94",Recruitment Services,EC2N 3AQ
"Department for Business, Innovation and Skills",UK Shared Business Services Ltd,03/10/2022,Contract Staff,SHARP,Alexander Mann Solutions Ltd,99813284,"2,710.13",Recruitment Services,EC2N 3AQ
"Department for Business, Innovation and Skills",UK Shared Business Services Ltd,03/10/2022,Contract Staff,People,Alexander Mann Solutions Ltd,99813287,"3,780.40",Recruitment Services,EC2N 3AQ
"Department for Business, Innovation and Skills",UK Shared Business Services Ltd,03/10/2022,Contract Staff,Production Services,Alexander Mann Solutions Ltd,99813289,"2,648.52",Recruitment Services,EC2N 3AQ
"Department for Business, Innovation and Skills",UK Shared Business Services Ltd,03/10/2022,Contract Staff,Production Services,Alexander Mann Solutions Ltd,99813296,"6,930.60",Recruitment Services,EC2N 3AQ
"Department for Business, Innovation and Skills",UK Shared Business Services Ltd,03/10/2022,Staff Training,HRSD Recoverables,ASK Europe PLC,99813333,840.00,Training,MK43 0BT
"Department for Business, Innovation and Skills",UK Shared Business Services Ltd,03/10/2022,Staff Training,HRSD Recoverables,ASK Europe PLC,99813334,504.00,Training,MK43 0BT
"Department for Business, Innovation and Skills",UK Shared Business Services Ltd,03/10/2022,Staff Training,HRSD Recoverables,ASK Europe PLC,99813337,504.00,Training,MK43 0BT
"Department for Business, Innovation and Skills",UK Shared Business Services Ltd,03/10/2022,Staff Training,HRSD Recoverables,ASK Europe PLC,99813338,504.00,Training,MK43 0BT
"Department for Business, Innovation and Skills",UK Shared Business Services Ltd,03/10/2022,Staff Training,HRSD Recoverables,ASK Europe PLC,99813417,840.00,Training,MK43 0BT
"Department for Business, Innovation and Skills",UK Shared Business Services Ltd,03/10/2022,Staff Training,HRSD Recoverables,ASK Europe PLC,99813424,504.00,Training,MK43 0BT
"Department for Business, Innovation and Skills",UK Shared Business Services Ltd,03/10/2022,Staff Training,HRSD Recoverables,ASK Europe PLC,99813427,840.00,Training,MK43 0BT
"Department for Business, Innovation and Skills",UK Shared Business Services Ltd,03/10/2022,Recruitment Costs,Production Services,People Source Consulting Ltd,99813880,"11,040.00",Recruitment Services,BS1 6BA
"Department for Business, Innovation and Skills",UK Shared Business Services Ltd,03/10/2022,T&S - Parking Tolls Congestion Charges,Finance Operations 1,Unspecified,99813984,8.00,"Parking, Tolls, Congestion Charge",HOME
"Department for Business, Innovation and Skills",UK Shared Business Services Ltd,03/10/2022,T&S - Subsistence,Finance Operations 1,Unspecified,99813984,42.50,Evening Meal (Actuals),HOME
"Department for Business, Innovation and Skills",UK Shared Business Services Ltd,03/10/2022,T&S - Vehicle Hire,Finance Operations 1,Unspecified,99813984,83.01,Vehicle Hire/Rental/Fuel (Actuals),HOME
"Department for Business, Innovation and Skills",UK Shared Business Services Ltd,03/10/2022,Health & Safety (inc. Medicals & Opticians),Contact Centres,Unspecified,99813985,80.00,Medical Fees & Vaccinations (Actuals),HOME
"Department for Business, Innovation and Skills",UK Shared Business Services Ltd,04/10/2022,Staff Training,HRSD Recoverables,ASK Europe PLC,99813420,840.00,Training,MK43 0BT
"Department for Business, Innovation and Skills",UK Shared Business Services Ltd,04/10/2022,3rd party IT Services,SHARP,IBM United Kingdom Ltd,99813428,"1,587,665.21",Computer Consumables,PO6 3AU
"Department for Business, Innovation and Skills",UK Shared Business Services Ltd,04/10/2022,Recruitment Costs,Corporate HR,Agenda Resource Management Ltd,99813964,485.58,Professional Services,HU12 8YJ
"Department for Business, Innovation and Skills",UK Shared Business Services Ltd,04/10/2022,Staff Training,HRSD Recoverables,CIPFA Business Ltd,99814164,"4,200.00",Training,E1 8AN
"Department for Business, Innovation and Skills",UK Shared Business Services Ltd,04/10/2022,T&S - Parking Tolls Congestion Charges,Operational Excellence,Unspecified,99814401,10.00,"Parking, Tolls, Congestion Charge",HOME
"Department for Business, Innovation and Skills",UK Shared Business Services Ltd,04/10/2022,HR Assignment Default Expense,Contact Centres,Enterprise Rent-A-Car UK Ltd,99814839,117.52,22/5/22-26/5/22,GL2 5DA
"Department for Business, Innovation and Skills",UK Shared Business Services Ltd,04/10/2022,HR Assignment Default Expense,Contact Centres,Enterprise Rent-A-Car UK Ltd,99814839,22.29,30/8/22-30/08/22,GL2 5DA
"Department for Business, Innovation and Skills",UK Shared Business Services Ltd,04/10/2022,HR Assignment Default Expense,Contact Centres,Enterprise Rent-A-Car UK Ltd,99814839,27.96,SR113053302/SR11305304 - CAR RENTAL,GL2 5DA
"Department for Business, Innovation and Skills",UK Shared Business Services Ltd,05/10/2022,Staff Training,HRSD Recoverables,Feldman Ltd T/A Brian Feldman and Associates,99813324,780.00,Training,SW15 5RH
"Department for Business, Innovation and Skills",UK Shared Business Services Ltd,05/10/2022,Staff Training,HRSD Recoverables,ASK Europe PLC,99813426,840.00,Training,MK43 0BT
"Department for Business, Innovation and Skills",UK Shared Business Services Ltd,05/10/2022,Prepayments - AP USE ONLY,Balance Sheet,Corporate Media Supplies Ltd T/A CM Brands,99814645,434.40,PO 4080025292 SR 11303902 LANYARDS,B90 4PD
"Department for Business, Innovation and Skills",UK Shared Business Services Ltd,05/10/2022,Computing Consumables,Production Services,Softcat plc,99815313,9.00,Computer Consumables,SL7 1LW
"Department for Business, Innovation and Skills",UK Shared Business Services Ltd,05/10/2022,Computing Consumables,Production Services,Softcat plc,99815313,"2,330.94",Computer Consumables,SL7 1LW
"Department for Business, Innovation and Skills",UK Shared Business Services Ltd,06/10/2022,IT Cloud Services,Production Services,Advanced Network Security Ltd,99789765,"4,032.00",LogRhythm University Training prepaid unit. Use to enroll in LogRhythm University Training classes (virtual or classroom),RG24 8GU
"Department for Business, Innovation and Skills",UK Shared Business Services Ltd,06/10/2022,Computer Software Licences,SIAM,Softcat plc,99797978,"2,014.90",Computing Software,SL7 1LW
"Department for Business, Innovation and Skills",UK Shared Business Services Ltd,06/10/2022,Hardware/Software Maintenance,ISS Recoverable Charges � UKRI,Ogel IT Ltd,99807620,"8,726.01","Technical Assurance, Support and Escalation Services",SG1 2FS
"Department for Business, Innovation and Skills",UK Shared Business Services Ltd,06/10/2022,Computing Consumables,Production Services,Bluefort Security Ltd,99810367,313.03,Computer Consumables,GU14 0LX
"Department for Business, Innovation and Skills",UK Shared Business Services Ltd,06/10/2022,Computing Consumables,Production Services,Bluefort Security Ltd,99810367,"9,998.40",Computer Consumables,GU14 0LX
"Department for Business, Innovation and Skills",UK Shared Business Services Ltd,06/10/2022,Staff Training,HRSD Recoverables,ASK Europe PLC,99813425,504.00,Training,MK43 0BT
"Department for Business, Innovation and Skills",UK Shared Business Services Ltd,06/10/2022,Recruitment Costs,Corporate HR,Agenda Resource Management Ltd,99814817,353.93,Professional Services,HU12 8YJ
"Department for Business, Innovation and Skills",UK Shared Business Services Ltd,06/10/2022,Staff Training,HRSD Recoverables,Feldman Ltd T/A Brian Feldman and Associates,99815245,780.00,Training,SW15 5RH
"Department for Business, Innovation and Skills",UK Shared Business Services Ltd,06/10/2022,Computer Software Licences,Production Services,Bottomline Technologies Ltd,99817217,871.92,Computer Consumables,RG7 4SA
"Department for Business, Innovation and Skills",UK Shared Business Services Ltd,06/10/2022,T&S - Parking Tolls Congestion Charges,Category and Continuous Improvement,Unspecified,99817263,10.00,"Parking, Tolls, Congestion Charge",HOME
"Department for Business, Innovation and Skills",UK Shared Business Services Ltd,06/10/2022,T&S - Parking Tolls Congestion Charges,Executive Function,Unspecified,99817264,8.60,"Parking, Tolls, Congestion Charge",HOME
"Department for Business, Innovation and Skills",UK Shared Business Services Ltd,06/10/2022,T&S - Mileage,D&I Infrastructure & Network Services,Unspecified,99817265,67.50,Mileage - Car (excl Home to Office),HOME
"Department for Business, Innovation and Skills",UK Shared Business Services Ltd,06/10/2022,T&S - Other Charges,D&I Infrastructure & Network Services,Unspecified,99817266,44.78,Home-working Equipment,HOME
"Department for Business, Innovation and Skills",UK Shared Business Services Ltd,07/10/2022,Staff Training,HRSD Recoverables,The Chartered Institute of Payroll Professionals (CIPP),99817421,140.00,Training,B90 4ZL
"Department for Business, Innovation and Skills",UK Shared Business Services Ltd,07/10/2022,Staff Training,HRSD Recoverables,ASK Europe PLC,99817575,840.00,Training,MK43 0BT
"Department for Business, Innovation and Skills",UK Shared Business Services Ltd,07/10/2022,Staff Training,HRSD Recoverables,ASK Europe PLC,99817576,840.00,Training,MK43 0BT
"Department for Business, Innovation and Skills",UK Shared Business Services Ltd,07/10/2022,Staff Training,HRSD Recoverables,ASK Europe PLC,99817577,840.00,Training,MK43 0BT
"Department for Business, Innovation and Skills",UK Shared Business Services Ltd,07/10/2022,Staff Training,HRSD Recoverables,ASK Europe PLC,99817578,840.00,Training,MK43 0BT
"Department for Business, Innovation and Skills",UK Shared Business Services Ltd,10/10/2022,Agency Staff,ROE Application Upgrade,Alexander Mann Solutions Ltd,99810448,"4,090.44",Recruitment Services,EC2N 3AQ
"Department for Business, Innovation and Skills",UK Shared Business Services Ltd,10/10/2022,Contract Staff,Production Services,Alexander Mann Solutions Ltd,99813773,"-3,079.62",Recruitment Services,EC2N 3AQ
"Department for Business, Innovation and Skills",UK Shared Business Services Ltd,10/10/2022,Computing Consumables,Production Services,Unspecified,99814399,160.74,GPC_Computer Consumables,HOME
"Department for Business, Innovation and Skills",UK Shared Business Services Ltd,10/10/2022,GPC Clearing - SSC,Balance Sheet,Unspecified,99814399,-160.74,Unspecified,HOME
"Department for Business, Innovation and Skills",UK Shared Business Services Ltd,10/10/2022,Contract Staff,People,Alexander Mann Solutions Ltd,99817713,"2,126.47",Recruitment Services,EC2N 3AQ
"Department for Business, Innovation and Skills",UK Shared Business Services Ltd,10/10/2022,Contract Staff,D&I Management,Alexander Mann Solutions Ltd,99817755,"2,648.52",Recruitment Services,EC2N 3AQ
"Department for Business, Innovation and Skills",UK Shared Business Services Ltd,10/10/2022,Contract Staff,Production Services,Alexander Mann Solutions Ltd,99817774,"2,463.70",Recruitment Services,EC2N 3AQ
"Department for Business, Innovation and Skills",UK Shared Business Services Ltd,10/10/2022,Contract Staff,Project Office,Alexander Mann Solutions Ltd,99817779,"3,649.14",Recruitment Services,EC2N 3AQ
"Department for Business, Innovation and Skills",UK Shared Business Services Ltd,10/10/2022,Contract Staff,Production Services,Alexander Mann Solutions Ltd,99818142,"3,465.30",Recruitment Services,EC2N 3AQ
"Department for Business, Innovation and Skills",UK Shared Business Services Ltd,10/10/2022,Agency Staff,ROE Application Upgrade,Alexander Mann Solutions Ltd,99818143,"4,090.44",Recruitment Services,EC2N 3AQ
"Department for Business, Innovation and Skills",UK Shared Business Services Ltd,10/10/2022,Contract Staff,People,Alexander Mann Solutions Ltd,99818146,"3,078.58",Recruitment Services,EC2N 3AQ
"Department for Business, Innovation and Skills",UK Shared Business Services Ltd,10/10/2022,T&S - Mileage,HR Ops,Unspecified,99818254,245.50,Mileage - Car (excl Home to Office),HOME
"Department for Business, Innovation and Skills",UK Shared Business Services Ltd,11/10/2022,Computer Software Licences,Production Services,Phoenix Software Ltd,99812550,"4,443.18",Computer Consumables,YO42 1NS
"Department for Business, Innovation and Skills",UK Shared Business Services Ltd,11/10/2022,Consultancy Services,"Risk, Information & Security Compliance",Risk Evolves Ltd,99817128,"2,040.00",Consultancy Services,CV31 1XT
"Department for Business, Innovation and Skills",UK Shared Business Services Ltd,11/10/2022,Consultancy Services,Production Services,Premiertec Consulting Ltd t/a Claremont,99817590,"51,442.50","Consultancy and Professional Services to develop two key work areas around API re-development and re-use, and automation of features connected to the primary and sub-processes associated with the SML process. Also included: BAU, CIs and CRs",NE1 3DY
"Department for Business, Innovation and Skills",UK Shared Business Services Ltd,11/10/2022,Consultancy Services,Production Services,Chess Cybersecurity Ltd,99818162,"6,048.00",Computer Consumables,SK9 7JP
"Department for Business, Innovation and Skills",UK Shared Business Services Ltd,11/10/2022,Consultancy Services,Production Services,Chess Cybersecurity Ltd,99818162,"1,512.00",Computer Consumables,SK9 7JP
"Department for Business, Innovation and Skills",UK Shared Business Services Ltd,11/10/2022,Consultancy Services,Production Services,Chess Cybersecurity Ltd,99818162,"1,512.00",Computer Consumables,SK9 7JP
"Department for Business, Innovation and Skills",UK Shared Business Services Ltd,11/10/2022,Consultancy Services,Production Services,Chess Cybersecurity Ltd,99818162,"1,512.00",Computer Consumables,SK9 7JP
"Department for Business, Innovation and Skills",UK Shared Business Services Ltd,11/10/2022,Consultancy Services,Production Services,Chess Cybersecurity Ltd,99818162,"2,508.00",Computer Consumables,SK9 7JP
"Department for Business, Innovation and Skills",UK Shared Business Services Ltd,12/10/2022,T&S - Mileage,Accounting,Unspecified,99797432,32.40,Mileage - Car (excl Home to Office),HOME
"Department for Business, Innovation and Skills",UK Shared Business Services Ltd,12/10/2022,T&S - Subsistence,Accounting,Unspecified,99797432,4.50,Breakfast (Actuals),HOME
"Department for Business, Innovation and Skills",UK Shared Business Services Ltd,12/10/2022,T&S - Subsistence,Accounting,Unspecified,99797432,6.75,Lunch (Actuals),HOME
"Department for Business, Innovation and Skills",UK Shared Business Services Ltd,12/10/2022,Consultancy Services,Production Services,Elysian IT Ltd,99817411,"5,850.00",Computer Consumables,RG23 8PE
"Department for Business, Innovation and Skills",UK Shared Business Services Ltd,12/10/2022,PAYE Payable Salaries,Balance Sheet,HM Revenue & Customs,99818048,"200,535.38",HMRC monthly deductions for SSC September 2022,3RD PARTY PAYME
"Department for Business, Innovation and Skills",UK Shared Business Services Ltd,12/10/2022,NI Payable Salaries,Balance Sheet,HM Revenue & Customs,99818049,"294,351.15",HMRC monthly deductions for SSC September 2022,3RD PARTY PAYME
"Department for Business, Innovation and Skills",UK Shared Business Services Ltd,12/10/2022,Student Loans,Balance Sheet,HM Revenue & Customs,99818050,"3,034.00",HMRC monthly deductions for SSC September 2022,3RD PARTY PAYME
"Department for Business, Innovation and Skills",UK Shared Business Services Ltd,12/10/2022,Apprenticeship Levy,Corporate HR,HM Revenue & Customs,99818051,"6,953.00",HMRC monthly deductions for SSC September 2022,3RD PARTY PAYME
"Department for Business, Innovation and Skills",UK Shared Business Services Ltd,12/10/2022,T&S - Accommodation,Central Services Management,Corporate Travel Management (North) Ltd,99818816,0.80,06/09/2022---Hotel Fee,BD1 5HQ
"Department for Business, Innovation and Skills",UK Shared Business Services Ltd,12/10/2022,T&S - Accommodation,Central Services Management,Corporate Travel Management (North) Ltd,99818816,0.80,21/09/2022---Hotel Fee,BD1 5HQ
"Department for Business, Innovation and Skills",UK Shared Business Services Ltd,12/10/2022,T&S - Accommodation,Central Services Management,Corporate Travel Management (North) Ltd,99818816,0.32,TRAVEL EXPENSES,BD1 5HQ
"Department for Business, Innovation and Skills",UK Shared Business Services Ltd,12/10/2022,T&S - Accommodation,Finance Services,Corporate Travel Management (North) Ltd,99818816,0.80,21/09/2022---Hotel Fee,BD1 5HQ
"Department for Business, Innovation and Skills",UK Shared Business Services Ltd,12/10/2022,T&S - Accommodation,Finance Services,Corporate Travel Management (North) Ltd,99818816,64.00,21/09/2022-Ibis Northampton Ce-Birmingham-Hotel,BD1 5HQ
"Department for Business, Innovation and Skills",UK Shared Business Services Ltd,12/10/2022,T&S - Accommodation,Finance Services,Corporate Travel Management (North) Ltd,99818816,0.80,21/09/2022---Hotel Fee,BD1 5HQ
"Department for Business, Innovation and Skills",UK Shared Business Services Ltd,12/10/2022,T&S - Accommodation,Finance Services,Corporate Travel Management (North) Ltd,99818816,64.00,21/09/2022-Ibis Northampton Ce-Birmingham-Hotel,BD1 5HQ
"Department for Business, Innovation and Skills",UK Shared Business Services Ltd,12/10/2022,T&S - Accommodation,Finance Services,Corporate Travel Management (North) Ltd,99818816,0.32,TRAVEL EXPENSES,BD1 5HQ
"Department for Business, Innovation and Skills",UK Shared Business Services Ltd,12/10/2022,T&S - Accommodation,Partnership Management,Corporate Travel Management (North) Ltd,99818816,0.80,27/09/2022---Hotel Fee,BD1 5HQ
"Department for Business, Innovation and Skills",UK Shared Business Services Ltd,12/10/2022,T&S - Accommodation,Partnership Management,Corporate Travel Management (North) Ltd,99818816,93.00,27/09/2022-White Hart Inn Cambridge-Cambridge-Hotel,BD1 5HQ
"Department for Business, Innovation and Skills",UK Shared Business Services Ltd,12/10/2022,T&S - Accommodation,Partnership Management,Corporate Travel Management (North) Ltd,99818816,0.16,TRAVEL EXPENSES,BD1 5HQ
"Department for Business, Innovation and Skills",UK Shared Business Services Ltd,12/10/2022,T&S - Accommodation,Project Office,Corporate Travel Management (North) Ltd,99818816,0.80,04/09/2022---Hotel Fee,BD1 5HQ
"Department for Business, Innovation and Skills",UK Shared Business Services Ltd,12/10/2022,T&S - Accommodation,Project Office,Corporate Travel Management (North) Ltd,99818816,204.00,04/09/2022-Hampton By Hilton B-Birmingham-Hotel,BD1 5HQ
"Department for Business, Innovation and Skills",UK Shared Business Services Ltd,12/10/2022,T&S - Accommodation,Project Office,Corporate Travel Management (North) Ltd,99818816,0.80,27/09/2022---Hotel Fee,BD1 5HQ
"Department for Business, Innovation and Skills",UK Shared Business Services Ltd,12/10/2022,T&S - Accommodation,Project Office,Corporate Travel Management (North) Ltd,99818816,150.00,27/09/2022-Jurys Inn Swindon-Bristol-Hotel,BD1 5HQ
"Department for Business, Innovation and Skills",UK Shared Business Services Ltd,12/10/2022,T&S - Accommodation,Project Office,Corporate Travel Management (North) Ltd,99818816,0.32,TRAVEL EXPENSES,BD1 5HQ
"Department for Business, Innovation and Skills",UK Shared Business Services Ltd,12/10/2022,T&S - Accommodation,Service Improvement and Assurance,Corporate Travel Management (North) Ltd,99818816,0.80,07/09/2022---Hotel Fee,BD1 5HQ
"Department for Business, Innovation and Skills",UK Shared Business Services Ltd,12/10/2022,T&S - Accommodation,Service Improvement and Assurance,Corporate Travel Management (North) Ltd,99818816,190.00,07/09/2022-Jurys Inn Swindon-Bristol-Hotel,BD1 5HQ
"Department for Business, Innovation and Skills",UK Shared Business Services Ltd,12/10/2022,T&S - Accommodation,Service Improvement and Assurance,Corporate Travel Management (North) Ltd,99818816,0.80,07/09/2022---Hotel Fee,BD1 5HQ
"Department for Business, Innovation and Skills",UK Shared Business Services Ltd,12/10/2022,T&S - Accommodation,Service Improvement and Assurance,Corporate Travel Management (North) Ltd,99818816,190.00,07/09/2022-Jurys Inn Swindon-Bristol-Hotel,BD1 5HQ
"Department for Business, Innovation and Skills",UK Shared Business Services Ltd,12/10/2022,T&S - Accommodation,Service Improvement and Assurance,Corporate Travel Management (North) Ltd,99818816,0.32,TRAVEL EXPENSES,BD1 5HQ
"Department for Business, Innovation and Skills",UK Shared Business Services Ltd,12/10/2022,T&S - Accommodation,Tier 1 ROE Transactions,Corporate Travel Management (North) Ltd,99818816,0.80,26/09/2022---Hotel Fee,BD1 5HQ
"Department for Business, Innovation and Skills",UK Shared Business Services Ltd,12/10/2022,T&S - Accommodation,Tier 1 ROE Transactions,Corporate Travel Management (North) Ltd,99818816,80.00,26/09/2022-Village Swindon-Bristol-Hotel,BD1 5HQ
"Department for Business, Innovation and Skills",UK Shared Business Services Ltd,12/10/2022,T&S - Accommodation,Tier 1 ROE Transactions,Corporate Travel Management (North) Ltd,99818816,0.16,TRAVEL EXPENSES,BD1 5HQ
"Department for Business, Innovation and Skills",UK Shared Business Services Ltd,12/10/2022,T&S - Other Charges,Finance Operations 2,Corporate Travel Management (North) Ltd,99818816,0.25,12/09/2022---Rail Fee,BD1 5HQ
"Department for Business, Innovation and Skills",UK Shared Business Services Ltd,12/10/2022,T&S - Other Charges,Finance Operations 2,Corporate Travel Management (North) Ltd,99818816,35.00,12/09/2022-Newport S.wales-Swindon-Rail,BD1 5HQ
"Department for Business, Innovation and Skills",UK Shared Business Services Ltd,12/10/2022,T&S - Other Charges,Finance Operations 2,Corporate Travel Management (North) Ltd,99818816,0.25,21/09/2022---Rail Fee,BD1 5HQ
"Department for Business, Innovation and Skills",UK Shared Business Services Ltd,12/10/2022,T&S - Other Charges,Finance Operations 2,Corporate Travel Management (North) Ltd,99818816,35.00,21/09/2022-Newport S.wales-Swindon-Rail,BD1 5HQ
"Department for Business, Innovation and Skills",UK Shared Business Services Ltd,12/10/2022,T&S - Public Transport,Category and Continuous Improvement,Corporate Travel Management (North) Ltd,99818816,0.25,04/10/2022---Rail Fee,BD1 5HQ
"Department for Business, Innovation and Skills",UK Shared Business Services Ltd,12/10/2022,T&S - Public Transport,Category and Continuous Improvement,Corporate Travel Management (North) Ltd,99818816,35.00,04/10/2022-Newport S.wales-Swindon-Rail,BD1 5HQ
"Department for Business, Innovation and Skills",UK Shared Business Services Ltd,12/10/2022,T&S - Public Transport,Category and Continuous Improvement,Corporate Travel Management (North) Ltd,99818816,0.25,06/09/2022---Rail Fee,BD1 5HQ
"Department for Business, Innovation and Skills",UK Shared Business Services Ltd,12/10/2022,T&S - Public Transport,Category and Continuous Improvement,Corporate Travel Management (North) Ltd,99818816,26.20,06/09/2022-Bristol Parkway-Swindon-Rail,BD1 5HQ
"Department for Business, Innovation and Skills",UK Shared Business Services Ltd,12/10/2022,T&S - Public Transport,Category and Continuous Improvement,Corporate Travel Management (North) Ltd,99818816,0.25,07/09/2022---Rail Fee,BD1 5HQ
"Department for Business, Innovation and Skills",UK Shared Business Services Ltd,12/10/2022,T&S - Public Transport,Category and Continuous Improvement,Corporate Travel Management (North) Ltd,99818816,35.00,07/09/2022-Newport S.wales-Swindon-Rail,BD1 5HQ
"Department for Business, Innovation and Skills",UK Shared Business Services Ltd,12/10/2022,T&S - Public Transport,Category and Continuous Improvement,Corporate Travel Management (North) Ltd,99818816,0.25,20/09/2022---Rail Fee,BD1 5HQ
"Department for Business, Innovation and Skills",UK Shared Business Services Ltd,12/10/2022,T&S - Public Transport,Category and Continuous Improvement,Corporate Travel Management (North) Ltd,99818816,26.20,20/09/2022-Bristol Parkway-Swindon-Rail,BD1 5HQ
"Department for Business, Innovation and Skills",UK Shared Business Services Ltd,12/10/2022,T&S - Public Transport,Category and Continuous Improvement,Corporate Travel Management (North) Ltd,99818816,0.25,26/09/2022---Rail Fee,BD1 5HQ
"Department for Business, Innovation and Skills",UK Shared Business Services Ltd,12/10/2022,T&S - Public Transport,Category and Continuous Improvement,Corporate Travel Management (North) Ltd,99818816,35.00,26/09/2022-Newport S.wales-Swindon-Rail,BD1 5HQ
"Department for Business, Innovation and Skills",UK Shared Business Services Ltd,12/10/2022,T&S - Public Transport,Category and Continuous Improvement,Corporate Travel Management (North) Ltd,99818816,0.25,27/09/2022---Rail Fee,BD1 5HQ
"Department for Business, Innovation and Skills",UK Shared Business Services Ltd,12/10/2022,T&S - Public Transport,Category and Continuous Improvement,Corporate Travel Management (North) Ltd,99818816,26.20,27/09/2022-Bristol Parkway-Swindon-Rail,BD1 5HQ
"Department for Business, Innovation and Skills",UK Shared Business Services Ltd,12/10/2022,T&S - Public Transport,Category and Continuous Improvement,Corporate Travel Management (North) Ltd,99818816,0.25,27/09/2022---Rail Fee,BD1 5HQ
"Department for Business, Innovation and Skills",UK Shared Business Services Ltd,12/10/2022,T&S - Public Transport,Category and Continuous Improvement,Corporate Travel Management (North) Ltd,99818816,35.00,27/09/2022-Newport S.wales-Swindon-Rail,BD1 5HQ
"Department for Business, Innovation and Skills",UK Shared Business Services Ltd,12/10/2022,T&S - Public Transport,Category and Continuous Improvement,Corporate Travel Management (North) Ltd,99818816,0.25,27/09/2022----Rail Fee,BD1 5HQ
"Department for Business, Innovation and Skills",UK Shared Business Services Ltd,12/10/2022,T&S - Public Transport,Category and Continuous Improvement,Corporate Travel Management (North) Ltd,99818816,49.20,27/09/2022-Bridgend-Swindon-Rail,BD1 5HQ
"Department for Business, Innovation and Skills",UK Shared Business Services Ltd,12/10/2022,T&S - Public Transport,Category and Continuous Improvement,Corporate Travel Management (North) Ltd,99818816,0.25,28/09/2022---Rail Fee,BD1 5HQ
"Department for Business, Innovation and Skills",UK Shared Business Services Ltd,12/10/2022,T&S - Public Transport,Category and Continuous Improvement,Corporate Travel Management (North) Ltd,99818816,35.00,28/09/2022-Newport S.wales-Swindon-Rail,BD1 5HQ
"Department for Business, Innovation and Skills",UK Shared Business Services Ltd,12/10/2022,T&S - Public Transport,Central Services Management,Corporate Travel Management (North) Ltd,99818816,0.25,21/09/2022---Rail Fee,BD1 5HQ
"Department for Business, Innovation and Skills",UK Shared Business Services Ltd,12/10/2022,T&S - Public Transport,Central Services Management,Corporate Travel Management (North) Ltd,99818816,77.50,21/09/2022-Nottingham-ZONE U1* LONDN-Rail,BD1 5HQ
"Department for Business, Innovation and Skills",UK Shared Business Services Ltd,12/10/2022,T&S - Public Transport,Corporate Finance,Corporate Travel Management (North) Ltd,99818816,0.25,19/09/2022---Rail Fee,BD1 5HQ
"Department for Business, Innovation and Skills",UK Shared Business Services Ltd,12/10/2022,T&S - Public Transport,Corporate Finance,Corporate Travel Management (North) Ltd,99818816,104.70,19/09/2022-Swindon (wilts)-London Zones 1-6-Rail,BD1 5HQ
"Department for Business, Innovation and Skills",UK Shared Business Services Ltd,12/10/2022,T&S - Public Transport,Corporate Finance,Corporate Travel Management (North) Ltd,99818816,0.25,28/09/2022---Rail Fee,BD1 5HQ
"Department for Business, Innovation and Skills",UK Shared Business Services Ltd,12/10/2022,T&S - Public Transport,Corporate Finance,Corporate Travel Management (North) Ltd,99818816,35.00,28/09/2022-Newport S.wales-Swindon-Rail,BD1 5HQ
"Department for Business, Innovation and Skills",UK Shared Business Services Ltd,12/10/2022,T&S - Public Transport,Corporate Finance,Corporate Travel Management (North) Ltd,99818816,0.25,28/09/2022---Rail Fee,BD1 5HQ
"Department for Business, Innovation and Skills",UK Shared Business Services Ltd,12/10/2022,T&S - Public Transport,Corporate Finance,Corporate Travel Management (North) Ltd,99818816,35.00,28/09/2022-Pontypool And New Inn-Swindon-Rail,BD1 5HQ
"Department for Business, Innovation and Skills",UK Shared Business Services Ltd,12/10/2022,T&S - Public Transport,Corporate Finance,Corporate Travel Management (North) Ltd,99818816,0.25,28/09/2022---Rail Fee,BD1 5HQ
"Department for Business, Innovation and Skills",UK Shared Business Services Ltd,12/10/2022,T&S - Public Transport,Corporate Finance,Corporate Travel Management (North) Ltd,99818816,35.00,28/09/2022-Newport S.wales-Swindon-Rail,BD1 5HQ
"Department for Business, Innovation and Skills",UK Shared Business Services Ltd,12/10/2022,T&S - Public Transport,Corporate Finance,Corporate Travel Management (North) Ltd,99818816,0.25,29/09/2022---Rail Fee,BD1 5HQ
"Department for Business, Innovation and Skills",UK Shared Business Services Ltd,12/10/2022,T&S - Public Transport,Corporate Finance,Corporate Travel Management (North) Ltd,99818816,104.70,29/09/2022-Swindon (wilts)-London Paddington-Rail,BD1 5HQ
"Department for Business, Innovation and Skills",UK Shared Business Services Ltd,12/10/2022,T&S - Public Transport,Corporate Support - General,Corporate Travel Management (North) Ltd,99818816,0.25,06/09/2022---Rail Fee,BD1 5HQ
"Department for Business, Innovation and Skills",UK Shared Business Services Ltd,12/10/2022,T&S - Public Transport,Corporate Support - General,Corporate Travel Management (North) Ltd,99818816,113.20,06/09/2022-Swindon (wilts)-ZONE U1* LONDN-Rail,BD1 5HQ
"Department for Business, Innovation and Skills",UK Shared Business Services Ltd,12/10/2022,T&S - Public Transport,D&I Management,Corporate Travel Management (North) Ltd,99818816,0.25,29/09/2022---Rail Fee,BD1 5HQ
"Department for Business, Innovation and Skills",UK Shared Business Services Ltd,12/10/2022,T&S - Public Transport,D&I Management,Corporate Travel Management (North) Ltd,99818816,202.50,29/09/2022-Chippenham-London Paddington-Rail,BD1 5HQ
"Department for Business, Innovation and Skills",UK Shared Business Services Ltd,12/10/2022,T&S - Public Transport,DDaT,Corporate Travel Management (North) Ltd,99818816,0.50,08/09/2022---Rail Fee,BD1 5HQ
"Department for Business, Innovation and Skills",UK Shared Business Services Ltd,12/10/2022,T&S - Public Transport,DDaT,Corporate Travel Management (North) Ltd,99818816,81.40,08/09/2022-Cardiff Central-Swindon-Rail,BD1 5HQ
"Department for Business, Innovation and Skills",UK Shared Business Services Ltd,12/10/2022,T&S - Public Transport,DDaT,Corporate Travel Management (North) Ltd,99818816,0.25,20/09/2022---Rail Fee,BD1 5HQ
"Department for Business, Innovation and Skills",UK Shared Business Services Ltd,12/10/2022,T&S - Public Transport,DDaT,Corporate Travel Management (North) Ltd,99818816,40.70,20/09/2022-Cardiff Central-Swindon-Rail,BD1 5HQ
"Department for Business, Innovation and Skills",UK Shared Business Services Ltd,12/10/2022,T&S - Public Transport,DDaT,Corporate Travel Management (North) Ltd,99818816,0.50,22/09/2022---Rail Fee,BD1 5HQ
"Department for Business, Innovation and Skills",UK Shared Business Services Ltd,12/10/2022,T&S - Public Transport,DDaT,Corporate Travel Management (North) Ltd,99818816,40.70,22/09/2022-Cardiff Central-Swindon-Rail,BD1 5HQ
"Department for Business, Innovation and Skills",UK Shared Business Services Ltd,12/10/2022,T&S - Public Transport,DDaT,Corporate Travel Management (North) Ltd,99818816,42.40,22/09/2022-Heath High Level-Swindon-Rail,BD1 5HQ
"Department for Business, Innovation and Skills",UK Shared Business Services Ltd,12/10/2022,T&S - Public Transport,DDaT,Corporate Travel Management (North) Ltd,99818816,0.25,27/09/2022---Rail Fee,BD1 5HQ
"Department for Business, Innovation and Skills",UK Shared Business Services Ltd,12/10/2022,T&S - Public Transport,DDaT,Corporate Travel Management (North) Ltd,99818816,23.00,27/09/2022-Newport S.wales-Swindon-Rail,BD1 5HQ
"Department for Business, Innovation and Skills",UK Shared Business Services Ltd,12/10/2022,T&S - Public Transport,DDaT,Corporate Travel Management (North) Ltd,99818816,1.00,27/09/2022---Rail Fee,BD1 5HQ
"Department for Business, Innovation and Skills",UK Shared Business Services Ltd,12/10/2022,T&S - Public Transport,DDaT,Corporate Travel Management (North) Ltd,99818816,40.70,27/09/2022-Cardiff Central-Swindon-Rail,BD1 5HQ
"Department for Business, Innovation and Skills",UK Shared Business Services Ltd,12/10/2022,T&S - Public Transport,DDaT,Corporate Travel Management (North) Ltd,99818816,40.70,27/09/2022-Cathays-Swindon-Rail,BD1 5HQ
"Department for Business, Innovation and Skills",UK Shared Business Services Ltd,12/10/2022,T&S - Public Transport,DDaT,Corporate Travel Management (North) Ltd,99818816,57.40,27/09/2022-Gowerton-Swindon-Rail,BD1 5HQ
"Department for Business, Innovation and Skills",UK Shared Business Services Ltd,12/10/2022,T&S - Public Transport,DDaT,Corporate Travel Management (North) Ltd,99818816,35.00,27/09/2022-Newport S.wales-Swindon-Rail,BD1 5HQ
"Department for Business, Innovation and Skills",UK Shared Business Services Ltd,12/10/2022,T&S - Public Transport,ERP Support,Corporate Travel Management (North) Ltd,99818816,0.25,08/09/2022---Rail Fee,BD1 5HQ
"Department for Business, Innovation and Skills",UK Shared Business Services Ltd,12/10/2022,T&S - Public Transport,ERP Support,Corporate Travel Management (North) Ltd,99818816,40.70,08/09/2022-Cardiff Central-Swindon-Rail,BD1 5HQ
"Department for Business, Innovation and Skills",UK Shared Business Services Ltd,12/10/2022,T&S - Public Transport,ERP Support,Corporate Travel Management (North) Ltd,99818816,0.25,08/09/2022---Rail Fee,BD1 5HQ
"Department for Business, Innovation and Skills",UK Shared Business Services Ltd,12/10/2022,T&S - Public Transport,ERP Support,Corporate Travel Management (North) Ltd,99818816,40.70,08/09/2022-Cardiff Central-Swindon-Rail,BD1 5HQ
"Department for Business, Innovation and Skills",UK Shared Business Services Ltd,12/10/2022,T&S - Public Transport,ERP Support,Corporate Travel Management (North) Ltd,99818816,0.25,13/09/2022---Rail Fee,BD1 5HQ
"Department for Business, Innovation and Skills",UK Shared Business Services Ltd,12/10/2022,T&S - Public Transport,ERP Support,Corporate Travel Management (North) Ltd,99818816,35.00,13/09/2022-Newport S.wales-Swindon-Rail,BD1 5HQ
"Department for Business, Innovation and Skills",UK Shared Business Services Ltd,12/10/2022,T&S - Public Transport,ERP Support,Corporate Travel Management (North) Ltd,99818816,0.25,21/09/2022---Rail Fee,BD1 5HQ
"Department for Business, Innovation and Skills",UK Shared Business Services Ltd,12/10/2022,T&S - Public Transport,ERP Support,Corporate Travel Management (North) Ltd,99818816,40.70,21/09/2022-Cardiff Central-Swindon-Rail,BD1 5HQ
"Department for Business, Innovation and Skills",UK Shared Business Services Ltd,12/10/2022,T&S - Public Transport,Executive Function,Corporate Travel Management (North) Ltd,99818816,0.25,12/10/2022---Rail Fee,BD1 5HQ
"Department for Business, Innovation and Skills",UK Shared Business Services Ltd,12/10/2022,T&S - Public Transport,Executive Function,Corporate Travel Management (North) Ltd,99818816,23.10,12/10/2022-Swindon (wilts)-Newport Gwent-Rail,BD1 5HQ
"Department for Business, Innovation and Skills",UK Shared Business Services Ltd,12/10/2022,T&S - Public Transport,Executive Function,Corporate Travel Management (North) Ltd,99818816,0.25,12/10/2022---Rail Fee,BD1 5HQ
"Department for Business, Innovation and Skills",UK Shared Business Services Ltd,12/10/2022,T&S - Public Transport,Executive Function,Corporate Travel Management (North) Ltd,99818816,27.70,12/10/2022-Trowbridge-Newport Gwent-Rail,BD1 5HQ
"Department for Business, Innovation and Skills",UK Shared Business Services Ltd,12/10/2022,T&S - Public Transport,Executive Function,Corporate Travel Management (North) Ltd,99818816,0.50,12/10/2022---Rail Fee,BD1 5HQ
"Department for Business, Innovation and Skills",UK Shared Business Services Ltd,12/10/2022,T&S - Public Transport,Executive Function,Corporate Travel Management (North) Ltd,99818816,11.00,12/10/2022-Chippenham-Swindon-Rail,BD1 5HQ
"Department for Business, Innovation and Skills",UK Shared Business Services Ltd,12/10/2022,T&S - Public Transport,Executive Function,Corporate Travel Management (North) Ltd,99818816,35.00,12/10/2022-Swindon (wilts)-Newport Gwent-Rail,BD1 5HQ
"Department for Business, Innovation and Skills",UK Shared Business Services Ltd,12/10/2022,T&S - Public Transport,Executive Function,Corporate Travel Management (North) Ltd,99818816,0.25,29/09/2022---Rail Fee,BD1 5HQ
"Department for Business, Innovation and Skills",UK Shared Business Services Ltd,12/10/2022,T&S - Public Transport,Executive Function,Corporate Travel Management (North) Ltd,99818816,56.80,29/09/2022-Andover-London Waterloo-Rail,BD1 5HQ
"Department for Business, Innovation and Skills",UK Shared Business Services Ltd,12/10/2022,T&S - Public Transport,Executive Function,Corporate Travel Management (North) Ltd,99818816,0.25,29/09/2022---Rail Fee,BD1 5HQ
"Department for Business, Innovation and Skills",UK Shared Business Services Ltd,12/10/2022,T&S - Public Transport,Executive Function,Corporate Travel Management (North) Ltd,99818816,158.70,29/09/2022-Swindon (wilts)-London Paddington-Rail,BD1 5HQ
"Department for Business, Innovation and Skills",UK Shared Business Services Ltd,12/10/2022,T&S - Public Transport,Executive Function,Corporate Travel Management (North) Ltd,99818816,0.25,29/09/2022---Rail Fee,BD1 5HQ
"Department for Business, Innovation and Skills",UK Shared Business Services Ltd,12/10/2022,T&S - Public Transport,Executive Function,Corporate Travel Management (North) Ltd,99818816,215.30,29/09/2022-Chippenham-London Paddington-Rail,BD1 5HQ
"Department for Business, Innovation and Skills",UK Shared Business Services Ltd,12/10/2022,T&S - Public Transport,Executive Function,Corporate Travel Management (North) Ltd,99818816,0.25,29/09/2022---Rail Fee,BD1 5HQ
"Department for Business, Innovation and Skills",UK Shared Business Services Ltd,12/10/2022,T&S - Public Transport,Executive Function,Corporate Travel Management (North) Ltd,99818816,202.50,29/09/2022-Chippenham-London Paddington-Rail,BD1 5HQ
"Department for Business, Innovation and Skills",UK Shared Business Services Ltd,12/10/2022,T&S - Public Transport,Finance Operations 2,Corporate Travel Management (North) Ltd,99818816,0.25,06/09/2022---Rail Fee,BD1 5HQ
"Department for Business, Innovation and Skills",UK Shared Business Services Ltd,12/10/2022,T&S - Public Transport,Finance Operations 2,Corporate Travel Management (North) Ltd,99818816,35.00,06/09/2022-Abergavenny-Swindon-Rail,BD1 5HQ
"Department for Business, Innovation and Skills",UK Shared Business Services Ltd,12/10/2022,T&S - Public Transport,Finance Operations 2,Corporate Travel Management (North) Ltd,99818816,0.25,06/09/2022---Rail Fee,BD1 5HQ
"Department for Business, Innovation and Skills",UK Shared Business Services Ltd,12/10/2022,T&S - Public Transport,Finance Operations 2,Corporate Travel Management (North) Ltd,99818816,35.00,06/09/2022-Abergavenny-Swindon-Rail,BD1 5HQ
"Department for Business, Innovation and Skills",UK Shared Business Services Ltd,12/10/2022,T&S - Public Transport,Finance Operations 2,Corporate Travel Management (North) Ltd,99818816,0.25,19/09/2022---Rail Fee,BD1 5HQ
"Department for Business, Innovation and Skills",UK Shared Business Services Ltd,12/10/2022,T&S - Public Transport,Finance Operations 2,Corporate Travel Management (North) Ltd,99818816,35.00,19/09/2022-Newport S.wales-Swindon-Rail,BD1 5HQ
"Department for Business, Innovation and Skills",UK Shared Business Services Ltd,12/10/2022,T&S - Public Transport,Finance Operations 2,Corporate Travel Management (North) Ltd,99818816,0.25,26/09/2022---Rail Fee,BD1 5HQ
"Department for Business, Innovation and Skills",UK Shared Business Services Ltd,12/10/2022,T&S - Public Transport,Finance Operations 2,Corporate Travel Management (North) Ltd,99818816,35.00,26/09/2022-Abergavenny-Swindon-Rail,BD1 5HQ
"Department for Business, Innovation and Skills",UK Shared Business Services Ltd,12/10/2022,T&S - Public Transport,Finance Operations 2,Corporate Travel Management (North) Ltd,99818816,0.25,28/09/2022---Rail Fee,BD1 5HQ
"Department for Business, Innovation and Skills",UK Shared Business Services Ltd,12/10/2022,T&S - Public Transport,Finance Operations 2,Corporate Travel Management (North) Ltd,99818816,35.00,28/09/2022-Abergavenny-Swindon-Rail,BD1 5HQ
"Department for Business, Innovation and Skills",UK Shared Business Services Ltd,12/10/2022,T&S - Public Transport,Finance Services,Corporate Travel Management (North) Ltd,99818816,0.25,07/09/2022---Rail Fee,BD1 5HQ
"Department for Business, Innovation and Skills",UK Shared Business Services Ltd,12/10/2022,T&S - Public Transport,Finance Services,Corporate Travel Management (North) Ltd,99818816,35.00,07/09/2022-Abergavenny-Swindon-Rail,BD1 5HQ
"Department for Business, Innovation and Skills",UK Shared Business Services Ltd,12/10/2022,T&S - Public Transport,Finance Services,Corporate Travel Management (North) Ltd,99818816,0.25,08/09/2022---Rail Fee,BD1 5HQ
"Department for Business, Innovation and Skills",UK Shared Business Services Ltd,12/10/2022,T&S - Public Transport,Finance Services,Corporate Travel Management (North) Ltd,99818816,35.00,08/09/2022-Abergavenny-Swindon-Rail,BD1 5HQ
"Department for Business, Innovation and Skills",UK Shared Business Services Ltd,12/10/2022,T&S - Public Transport,HR Management,Corporate Travel Management (North) Ltd,99818816,0.12,21/09/2022---Rail Fee,BD1 5HQ
"Department for Business, Innovation and Skills",UK Shared Business Services Ltd,12/10/2022,T&S - Public Transport,HR Management,Corporate Travel Management (North) Ltd,99818816,171.50,21/09/2022-Swindon (wilts)-London Paddington-Rail,BD1 5HQ
"Department for Business, Innovation and Skills",UK Shared Business Services Ltd,12/10/2022,T&S - Public Transport,HR Management,Corporate Travel Management (North) Ltd,99818816,0.13,21/09/2022---Rail Fee,BD1 5HQ
"Department for Business, Innovation and Skills",UK Shared Business Services Ltd,12/10/2022,T&S - Public Transport,HR Management,Corporate Travel Management (North) Ltd,99818816,171.50,21/09/2022-Swindon (wilts)-London Paddington-Rail,BD1 5HQ
"Department for Business, Innovation and Skills",UK Shared Business Services Ltd,12/10/2022,T&S - Public Transport,Operational Assurance,Corporate Travel Management (North) Ltd,99818816,0.25,11/10/2022---Rail Fee,BD1 5HQ
"Department for Business, Innovation and Skills",UK Shared Business Services Ltd,12/10/2022,T&S - Public Transport,Operational Assurance,Corporate Travel Management (North) Ltd,99818816,35.00,11/10/2022-Swindon (wilts)-Newport Gwent-Rail,BD1 5HQ
"Department for Business, Innovation and Skills",UK Shared Business Services Ltd,12/10/2022,T&S - Public Transport,Operational Assurance,Corporate Travel Management (North) Ltd,99818816,0.25,12/10/2022---Rail Fee,BD1 5HQ
"Department for Business, Innovation and Skills",UK Shared Business Services Ltd,12/10/2022,T&S - Public Transport,Operational Assurance,Corporate Travel Management (North) Ltd,99818816,35.00,12/10/2022-Swindon (wilts)-Newport Gwent-Rail,BD1 5HQ
"Department for Business, Innovation and Skills",UK Shared Business Services Ltd,12/10/2022,T&S - Public Transport,Operational Procurement,Corporate Travel Management (North) Ltd,99818816,-157.20,19/07/2022-Swindon (wilts)-ZONE U1* LONDN-Rail,BD1 5HQ
"Department for Business, Innovation and Skills",UK Shared Business Services Ltd,12/10/2022,T&S - Public Transport,Partnership Management,Corporate Travel Management (North) Ltd,99818816,0.25,06/09/2022---Rail Fee,BD1 5HQ
"Department for Business, Innovation and Skills",UK Shared Business Services Ltd,12/10/2022,T&S - Public Transport,Partnership Management,Corporate Travel Management (North) Ltd,99818816,134.50,06/09/2022-Swindon (wilts)-Peterborough-Rail,BD1 5HQ
"Department for Business, Innovation and Skills",UK Shared Business Services Ltd,12/10/2022,T&S - Public Transport,Payroll,Corporate Travel Management (North) Ltd,99818816,0.25,21/09/2022---Rail Fee,BD1 5HQ
"Department for Business, Innovation and Skills",UK Shared Business Services Ltd,12/10/2022,T&S - Public Transport,Payroll,Corporate Travel Management (North) Ltd,99818816,76.60,21/09/2022-Swindon (wilts)-London Zones 1-6-Rail,BD1 5HQ
"Department for Business, Innovation and Skills",UK Shared Business Services Ltd,12/10/2022,T&S - Public Transport,Professional Services,Corporate Travel Management (North) Ltd,99818816,0.25,27/09/2022---Rail Fee,BD1 5HQ
"Department for Business, Innovation and Skills",UK Shared Business Services Ltd,12/10/2022,T&S - Public Transport,Professional Services,Corporate Travel Management (North) Ltd,99818816,42.40,27/09/2022-Llanishen-Swindon-Rail,BD1 5HQ
"Department for Business, Innovation and Skills",UK Shared Business Services Ltd,12/10/2022,T&S - Public Transport,Project Office,Corporate Travel Management (North) Ltd,99818816,0.25,27/09/2022---Rail Fee,BD1 5HQ
"Department for Business, Innovation and Skills",UK Shared Business Services Ltd,12/10/2022,T&S - Public Transport,Project Office,Corporate Travel Management (North) Ltd,99818816,290.20,27/09/2022-Middlesbrough-Swindon-Rail,BD1 5HQ
"Department for Business, Innovation and Skills",UK Shared Business Services Ltd,12/10/2022,T&S - Public Transport,"Risk, Information & Security Compliance",Corporate Travel Management (North) Ltd,99818816,0.25,07/10/2022---Rail Fee,BD1 5HQ
"Department for Business, Innovation and Skills",UK Shared Business Services Ltd,12/10/2022,T&S - Public Transport,"Risk, Information & Security Compliance",Corporate Travel Management (North) Ltd,99818816,40.00,07/10/2022-Swindon (wilts)-London Waterloo-Rail,BD1 5HQ
"Department for Business, Innovation and Skills",UK Shared Business Services Ltd,12/10/2022,T&S - Public Transport,Strategy,Corporate Travel Management (North) Ltd,99818816,0.25,22/09/2022---Rail Fee,BD1 5HQ
"Department for Business, Innovation and Skills",UK Shared Business Services Ltd,12/10/2022,T&S - Public Transport,Strategy,Corporate Travel Management (North) Ltd,99818816,18.10,22/09/2022-Bristol Parkway-Swindon-Rail,BD1 5HQ
"Department for Business, Innovation and Skills",UK Shared Business Services Ltd,12/10/2022,External Audit Fees,Corporate Finance,National Audit Office,99819696,"84,000.00",Professional Services Other,SW1W 9SP
"Department for Business, Innovation and Skills",UK Shared Business Services Ltd,12/10/2022,Mobile Phone Costs,Production Services,Telefonica UK Ltd (O2),99819745,"1,812.41",SR 11317142 LINE RENTAL CHARGES,SMARTFORM
"Department for Business, Innovation and Skills",UK Shared Business Services Ltd,12/10/2022,Contract Staff,Production Services,Proventeq Limited,99820110,"74,898.00",Computer Consumables,RG6 6BU
"Department for Business, Innovation and Skills",UK Shared Business Services Ltd,12/10/2022,Health & Safety (inc. Medicals & Opticians),UK SBS Data,Unspecified,99820255,25.00,Medical Fees & Vaccinations (Actuals),HOME
"Department for Business, Innovation and Skills",UK Shared Business Services Ltd,13/10/2022,Data Storage & Recovery,Finance Operations 1,The Maltings Document Storage Solutions Ltd,99816010,338.99,Computing Services,CF24 5EA
"Department for Business, Innovation and Skills",UK Shared Business Services Ltd,13/10/2022,Voluntary Deductions,Balance Sheet,Civil Service Benevolent Fund,99818053,18.00,SSC THIRD PARTY PAYMENTS September2022,SM3 8DY
"Department for Business, Innovation and Skills",UK Shared Business Services Ltd,13/10/2022,Union Deductions,Balance Sheet,PCS Union,99818054,920.68,SSC THIRD PARTY PAYMENTS September2022,SW11 2LN
"Department for Business, Innovation and Skills",UK Shared Business Services Ltd,13/10/2022,Voluntary Deductions,Balance Sheet,Swindon Office Sports and Social Club,99818055,178.00,SSC THIRD PARTY PAYMENTS September2022,SN2 1EU
"Department for Business, Innovation and Skills",UK Shared Business Services Ltd,13/10/2022,Ees Pension Deductions - JSS,Balance Sheet,RCPS Pension,99818056,"83,460.25",RCPS monthly contributions for SSC September2022,SN2 1UY.
"Department for Business, Innovation and Skills",UK Shared Business Services Ltd,13/10/2022,Ers Pension Deductions - JSS,Balance Sheet,RCPS Pension,99818057,"375,806.90",RCPS monthly contributions for SSC September2022,SN2 1UY.
"Department for Business, Innovation and Skills",UK Shared Business Services Ltd,13/10/2022,Other Pension Deductions,Balance Sheet,Scottish Widows,99818058,100.00,SSC THIRD PARTY PAYMENTS September2022,EH16 5BU
"Department for Business, Innovation and Skills",UK Shared Business Services Ltd,13/10/2022,Partnership Pension Deductions,Balance Sheet,Scottish Widows,99818059,"3,791.15",SSC THIRD PARTY PAYMENTS September2022,EH16 5BU
"Department for Business, Innovation and Skills",UK Shared Business Services Ltd,13/10/2022,Partnership Pension Deductions,Balance Sheet,Standard Life Assurance Ltd,99818060,391.31,SSC THIRD PARTY PAYMENTS September2022,EH1 2DH
"Department for Business, Innovation and Skills",UK Shared Business Services Ltd,13/10/2022,Ees Pension Deductions - MRC,Balance Sheet,JLT Pensions Administration Ltd T/A JLT Employee Benefits,99818064,"3,891.79",SSC THIRD PARTY PAYMENTS September2022,PRINCIPAL SECTI
"Department for Business, Innovation and Skills",UK Shared Business Services Ltd,13/10/2022,Ers Pension Deductions - MRC,Balance Sheet,JLT Pensions Administration Ltd T/A JLT Employee Benefits,99818065,"10,118.65",SSC THIRD PARTY PAYMENTS September2022,PRINCIPAL SECTI
"Department for Business, Innovation and Skills",UK Shared Business Services Ltd,13/10/2022,Voluntary Deductions,Balance Sheet,BHCA (Services) Ltd,99818066,59.15,SSC THIRD PARTY PAYMENTS September2022,NN14 1UE
"Department for Business, Innovation and Skills",UK Shared Business Services Ltd,13/10/2022,Ees Pension Deductions - MyCSP,Balance Sheet,Cabinet Office RM Shared Services,99818067,145.36,UKSBS THIRD PARTY PAYMENTS September 2022,FY5 3TA
"Department for Business, Innovation and Skills",UK Shared Business Services Ltd,13/10/2022,Ers Pension Deductions - MyCSP,Balance Sheet,Cabinet Office RM Shared Services,99818068,722.78,UKSBS THIRD PARTY PAYMENTS September 2022,FY5 3TA
"Department for Business, Innovation and Skills",UK Shared Business Services Ltd,13/10/2022,Health & Safety (inc. Medicals & Opticians),People,Swindon Occupational Medical Services Ltd,99820465,760.00,Professional Services,GL7 7AL
"Department for Business, Innovation and Skills",UK Shared Business Services Ltd,13/10/2022,Nursery Deductions,Balance Sheet,EDENRED (UK GROUP) LTD,99820511,"1,325.00",SR 11318442 CHILDCARE VOUCHERS OCTOBER 2022,SW1V 2RS
"Department for Business, Innovation and Skills",UK Shared Business Services Ltd,13/10/2022,Nursery Deductions,Balance Sheet,EDENRED (UK GROUP) LTD,99820512,-248.87,SR 11318442 CHILDCARE VOUCHERS CREDIT 128188,SW1V 2RS
"Department for Business, Innovation and Skills",UK Shared Business Services Ltd,14/10/2022,Nursery Deductions,Balance Sheet,EDENRED (UK GROUP) LTD,99780684,-1.00,SR 11229476 CREDIT CHILDCARE VOUCHERS JULY,SW1V 2RS
"Department for Business, Innovation and Skills",UK Shared Business Services Ltd,14/10/2022,Hardware/Software Maintenance,Production Services,Chess Cybersecurity Ltd,99820401,"3,805.20",Computer Consumables,SK9 7JP
"Department for Business, Innovation and Skills",UK Shared Business Services Ltd,14/10/2022,Computer Hardware,Network Improvements,Park Place Technologies Ltd,99821178,"35,328.00",Computer Consumables,SE10 0ER
"Department for Business, Innovation and Skills",UK Shared Business Services Ltd,14/10/2022,Computer Hardware,Network Improvements,Park Place Technologies Ltd,99821178,216.00,Computer Consumables,SE10 0ER
"Department for Business, Innovation and Skills",UK Shared Business Services Ltd,14/10/2022,Other Staff Benefits,Corporate HR,EDENRED (UK GROUP) LTD,99821268,504.28,Professional Services,SW1V 2RS
"Department for Business, Innovation and Skills",UK Shared Business Services Ltd,14/10/2022,T&S - Other Charges,Resourcing,Unspecified,99821394,159.99,Home-working Equipment,HOME
"Department for Business, Innovation and Skills",UK Shared Business Services Ltd,14/10/2022,T&S - Public Transport,Tier 1 BOE Transactions,Unspecified,99821397,19.70,Public Transport - Taxi Fare (Actuals),HOME
"Department for Business, Innovation and Skills",UK Shared Business Services Ltd,14/10/2022,Telecoms - Land Line Rental,Production Services,British Telecom Plc (BT),99821860,"12,563.91",SR 11319608 REGULAR CHARGES 01/10/22-31/10/22,E1 8EE
"Department for Business, Innovation and Skills",UK Shared Business Services Ltd,14/10/2022,Staff Training,HRSD Recoverables,The Digital Accessibility Centre Ltd,99821987,"1,800.00",Training,SA10 6FG
"Department for Business, Innovation and Skills",UK Shared Business Services Ltd,14/10/2022,Staff Training,HRSD Recoverables,The Digital Accessibility Centre Ltd,99821987,160.92,Training,SA10 6FG
"Department for Business, Innovation and Skills",UK Shared Business Services Ltd,17/10/2022,Computing Consumables,D&I Management,Unspecified,99814400,29.88,GPC_Computer Consumables,HOME
"Department for Business, Innovation and Skills",UK Shared Business Services Ltd,17/10/2022,GPC Clearing - SSC,Balance Sheet,Unspecified,99814400,-29.88,Unspecified,HOME
"Department for Business, Innovation and Skills",UK Shared Business Services Ltd,17/10/2022,Staff Training,Corporate HR,Knowledge Train Ltd,99816442,"1,198.80",Training,EC4M 7AN
"Department for Business, Innovation and Skills",UK Shared Business Services Ltd,17/10/2022,Recruitment Costs,Corporate HR,Agenda Resource Management Ltd,99821342,466.15,Professional Services,HU12 8YJ
"Department for Business, Innovation and Skills",UK Shared Business Services Ltd,17/10/2022,T&S - Mileage,D&I Infrastructure & Network Services,Unspecified,99821749,67.50,Mileage - Car (excl Home to Office),HOME
"Department for Business, Innovation and Skills",UK Shared Business Services Ltd,17/10/2022,Health & Safety (inc. Medicals & Opticians),UK SBS Data,Unspecified,99821750,80.00,Medical Fees & Vaccinations (Actuals),HOME
"Department for Business, Innovation and Skills",UK Shared Business Services Ltd,17/10/2022,T&S - Public Transport,Contact Centres,Unspecified,99821751,16.40,Public Transport - Taxi Fare (Actuals),HOME
"Department for Business, Innovation and Skills",UK Shared Business Services Ltd,17/10/2022,Recruitment Costs,Production Services,Robert Half Ltd,99822235,"6,336.00",Recruitment Services,B37 7GN
"Department for Business, Innovation and Skills",UK Shared Business Services Ltd,17/10/2022,Contract Staff,D&I Management,Alexander Mann Solutions Ltd,99822292,"2,118.82",Recruitment Services,EC2N 3AQ
"Department for Business, Innovation and Skills",UK Shared Business Services Ltd,17/10/2022,Contract Staff,SHARP,Alexander Mann Solutions Ltd,99822329,"6,097.79",Recruitment Services,EC2N 3AQ
"Department for Business, Innovation and Skills",UK Shared Business Services Ltd,17/10/2022,Contract Staff,Project Office,Alexander Mann Solutions Ltd,99822348,"3,649.14",Recruitment Services,EC2N 3AQ
"Department for Business, Innovation and Skills",UK Shared Business Services Ltd,17/10/2022,Contract Staff,People,Alexander Mann Solutions Ltd,99822376,"1,653.92",Recruitment Services,EC2N 3AQ
"Department for Business, Innovation and Skills",UK Shared Business Services Ltd,17/10/2022,Corporate Events,Production Services,Great Western Hotel (Swindon) Ltd,99822401,300.00,Conference & Venues,SN1 1DH
"Department for Business, Innovation and Skills",UK Shared Business Services Ltd,18/10/2022,Computing Consumables,Production Services,Probrand Ltd,99813052,686.40,Computer Consumables,SMARTFORM
"Department for Business, Innovation and Skills",UK Shared Business Services Ltd,18/10/2022,Computing Consumables,Production Services,Park Place Technologies Ltd,99821738,"17,840.74",Computer Consumables,SE10 0ER
"Department for Business, Innovation and Skills",UK Shared Business Services Ltd,18/10/2022,Agency Staff,ROE Application Upgrade,Alexander Mann Solutions Ltd,99822340,"7,362.79",Recruitment Services,EC2N 3AQ
"Department for Business, Innovation and Skills",UK Shared Business Services Ltd,18/10/2022,Contract Staff,Production Services,Alexander Mann Solutions Ltd,99822345,"3,465.30",Recruitment Services,EC2N 3AQ
"Department for Business, Innovation and Skills",UK Shared Business Services Ltd,18/10/2022,Contract Staff,Production Services,Alexander Mann Solutions Ltd,99822369,"4,385.18",Recruitment Services,EC2N 3AQ
"Department for Business, Innovation and Skills",UK Shared Business Services Ltd,18/10/2022,Other Staff Benefits,People,Amazon EU SARL,99822648,"1,125.00",ZZ-Employee Benefits,EC2A 2FA
"Department for Business, Innovation and Skills",UK Shared Business Services Ltd,18/10/2022,Staff Training,HRSD Recoverables,ASK Europe PLC,99822777,840.00,Training,MK43 0BT
"Department for Business, Innovation and Skills",UK Shared Business Services Ltd,18/10/2022,Staff Training,HRSD Recoverables,ASK Europe PLC,99822777,504.00,Training,MK43 0BT
"Department for Business, Innovation and Skills",UK Shared Business Services Ltd,18/10/2022,Staff Training,HRSD Recoverables,ASK Europe PLC,99822780,840.00,Training,MK43 0BT
"Department for Business, Innovation and Skills",UK Shared Business Services Ltd,18/10/2022,Staff Training,HRSD Recoverables,ASK Europe PLC,99822783,840.00,Training,MK43 0BT
"Department for Business, Innovation and Skills",UK Shared Business Services Ltd,18/10/2022,Staff Training,HRSD Recoverables,ASK Europe PLC,99822786,504.00,Training,MK43 0BT
"Department for Business, Innovation and Skills",UK Shared Business Services Ltd,18/10/2022,T&S - Vehicle Hire,Executive Function,Enterprise Rent-A-Car UK Ltd,99822800,111.95,MR  5/10/22-8/10/22,GL2 5DA
"Department for Business, Innovation and Skills",UK Shared Business Services Ltd,18/10/2022,T&S - Vehicle Hire,Executive Function,Enterprise Rent-A-Car UK Ltd,99822800,22.39,sr11328154 & SR11328158 CAR RENTAL,GL2 5DA
"Department for Business, Innovation and Skills",UK Shared Business Services Ltd,18/10/2022,T&S - Vehicle Hire,Production Services,Enterprise Rent-A-Car UK Ltd,99822800,162.10, 9/10/22-13/10/22,GL2 5DA
"Department for Business, Innovation and Skills",UK Shared Business Services Ltd,18/10/2022,T&S - Vehicle Hire,Production Services,Enterprise Rent-A-Car UK Ltd,99822800,32.42,sr11328154 & SR11328158 CAR RENTAL,GL2 5DA
"Department for Business, Innovation and Skills",UK Shared Business Services Ltd,18/10/2022,Staff Training,HRSD Recoverables,ASK Europe PLC,99823016,840.00,Training,MK43 0BT
"Department for Business, Innovation and Skills",UK Shared Business Services Ltd,18/10/2022,Staff Training,HRSD Recoverables,ASK Europe PLC,99823019,840.00,Training,MK43 0BT
"Department for Business, Innovation and Skills",UK Shared Business Services Ltd,18/10/2022,Staff Training,HRSD Recoverables,ASK Europe PLC,99823020,840.00,Training,MK43 0BT
"Department for Business, Innovation and Skills",UK Shared Business Services Ltd,18/10/2022,Health & Safety (inc. Medicals & Opticians),UK SBS Data,Unspecified,99823270,36.00,Medical Fees & Vaccinations (Actuals),HOME
"Department for Business, Innovation and Skills",UK Shared Business Services Ltd,18/10/2022,Health & Safety (inc. Medicals & Opticians),Partnership Management,Unspecified,99823271,16.99,Medical Fees & Vaccinations (Actuals),HOME
"Department for Business, Innovation and Skills",UK Shared Business Services Ltd,18/10/2022,T&S - Public Transport,Partnership Management,Unspecified,99823271,2.80,Public Transport - Bus (Actuals),HOME
"Department for Business, Innovation and Skills",UK Shared Business Services Ltd,18/10/2022,T&S - Public Transport,Partnership Management,Unspecified,99823271,20.00,Public Transport - Taxi Fare (Actuals),HOME
"Department for Business, Innovation and Skills",UK Shared Business Services Ltd,18/10/2022,T&S - Subsistence,Partnership Management,Unspecified,99823271,8.69,Lunch (Actuals),HOME
"Department for Business, Innovation and Skills",UK Shared Business Services Ltd,18/10/2022,Health & Safety (inc. Medicals & Opticians),Facilities,Unspecified,99823272,16.99,Medical Fees & Vaccinations (Actuals),HOME
"Department for Business, Innovation and Skills",UK Shared Business Services Ltd,18/10/2022,T&S - Mileage,Accounting,Unspecified,99823273,76.80,Mileage - Car (excl Home to Office),HOME
"Department for Business, Innovation and Skills",UK Shared Business Services Ltd,18/10/2022,Education Fees & Study Materials,Finance Operations 1,Unspecified,99823274,226.83,Educational Materials - Study Books,HOME
"Department for Business, Innovation and Skills",UK Shared Business Services Ltd,18/10/2022,T&S - Vehicle Hire,Contact Centres,Unspecified,99823275,20.01,Vehicle Hire/Rental/Fuel (Actuals),HOME
"Department for Business, Innovation and Skills",UK Shared Business Services Ltd,19/10/2022,Contract Staff,Production Services,Hays Specialist Recruitment Ltd,99824050,"4,568.52",Recruitment Services,KT3 4QF
"Department for Business, Innovation and Skills",UK Shared Business Services Ltd,19/10/2022,Contract Staff,Production Services,Hays Specialist Recruitment Ltd,99824050,"2,251.36",Recruitment Services,KT3 4QF
"Department for Business, Innovation and Skills",UK Shared Business Services Ltd,19/10/2022,Contract Staff,Production Services,Hays Specialist Recruitment Ltd,99824053,"6,018.79",Recruitment Services,KT3 4QF
"Department for Business, Innovation and Skills",UK Shared Business Services Ltd,19/10/2022,T&S - Other Charges,Communications,Unspecified,99824239,226.80,Home-working Equipment,HOME
"Department for Business, Innovation and Skills",UK Shared Business Services Ltd,19/10/2022,T&S - Public Transport,Core Services,Unspecified,99824240,52.29,Public Transport - Train (Actuals),HOME
"Department for Business, Innovation and Skills",UK Shared Business Services Ltd,19/10/2022,T&S - Subsistence,D&I Operations,Unspecified,99824241,7.69,Lunch (Actuals),HOME
"Department for Business, Innovation and Skills",UK Shared Business Services Ltd,19/10/2022,T&S - Subsistence,D&I Infrastructure & Network Services,Unspecified,99824242,87.36,Evening Meal (Actuals),HOME
"Department for Business, Innovation and Skills",UK Shared Business Services Ltd,19/10/2022,T&S - Vehicle Hire,D&I Infrastructure & Network Services,Unspecified,99824242,41.01,Vehicle Hire/Rental/Fuel (Actuals),HOME
"Department for Business, Innovation and Skills",UK Shared Business Services Ltd,20/10/2022,Consultancy Services,Production Services,Barcross Ltd,99815093,600.00,Remote support of IaC tasks. To be invoiced in blocks of 0.5 days,HA2 0HY
"Department for Business, Innovation and Skills",UK Shared Business Services Ltd,20/10/2022,Staff Training,HRSD Recoverables,ASK Europe PLC,99822781,840.00,Training,MK43 0BT
"Department for Business, Innovation and Skills",UK Shared Business Services Ltd,20/10/2022,Computer Software,Production Services,BSI Assurance UK Ltd,99823408,"6,840.00",Computer Consumables,MK1 9EL
"Department for Business, Innovation and Skills",UK Shared Business Services Ltd,20/10/2022,Computer Software,Production Services,BSI Assurance UK Ltd,99823408,240.00,Computer Consumables,MK1 9EL
"Department for Business, Innovation and Skills",UK Shared Business Services Ltd,20/10/2022,Other Staff Benefits,People,Sugar Shack Swindon Ltd,99823796,"8,400.00",ZZ-Employee Benefits,SN25 4AN
"Department for Business, Innovation and Skills",UK Shared Business Services Ltd,20/10/2022,Agency Staff,HR Ops,Hays Specialist Recruitment Ltd,99824065,790.68,Recruitment Services,KT3 4QF
"Department for Business, Innovation and Skills",UK Shared Business Services Ltd,20/10/2022,Other Staff Benefits,People,Amazon EU SARL,99824381,675.00,ZZ-Employee Benefits,EC2A 2FA
"Department for Business, Innovation and Skills",UK Shared Business Services Ltd,20/10/2022,T&S - Public Transport,Strategy,Unspecified,99824576,59.60,Public Transport - Train (Actuals),HOME
"Department for Business, Innovation and Skills",UK Shared Business Services Ltd,20/10/2022,T&S - Public Transport,Core Services,Unspecified,99824577,52.59,Public Transport - Train (Actuals),HOME
"Department for Business, Innovation and Skills",UK Shared Business Services Ltd,20/10/2022,T&S - Parking Tolls Congestion Charges,UK SBS Data,Unspecified,99824578,11.00,"Parking, Tolls, Congestion Charge",HOME
"Department for Business, Innovation and Skills",UK Shared Business Services Ltd,20/10/2022,T&S - Accommodation,Partnership Management,Unspecified,99824579,93.00,Accommodation - Hotels Elsewhere Actuals,HOME
"Department for Business, Innovation and Skills",UK Shared Business Services Ltd,20/10/2022,T&S - Mileage,Partnership Management,Unspecified,99824579,71.25,Mileage - Car Allowance,HOME
"Department for Business, Innovation and Skills",UK Shared Business Services Ltd,20/10/2022,T&S - Subsistence,Partnership Management,Unspecified,99824579,25.00,Evening Meal (Actuals),HOME
"Department for Business, Innovation and Skills",UK Shared Business Services Ltd,21/10/2022,Computer Software Licences,SIAM,Phoenix Software Ltd,99824767,126.90,Computing Software,YO42 1NS
"Department for Business, Innovation and Skills",UK Shared Business Services Ltd,21/10/2022,Computer Hardware,Network Improvements,CDW Ltd,99824856,"17,353.70",Computer Consumables,SWAREHOUSEONLY
"Department for Business, Innovation and Skills",UK Shared Business Services Ltd,21/10/2022,Computer Hardware,Network Improvements,CDW Ltd,99824856,"8,203.56",Computer Consumables,SWAREHOUSEONLY
"Department for Business, Innovation and Skills",UK Shared Business Services Ltd,21/10/2022,Computer Hardware,Network Improvements,CDW Ltd,99824857,"1,413.50",Computer Consumables,EC4M 7RB
"Department for Business, Innovation and Skills",UK Shared Business Services Ltd,21/10/2022,Computer Hardware,Network Improvements,CDW Ltd,99824857,"6,093.79",Computer Consumables,EC4M 7RB
"Department for Business, Innovation and Skills",UK Shared Business Services Ltd,21/10/2022,Computer Hardware,Network Improvements,CDW Ltd,99824857,382.42,Computer Consumables,EC4M 7RB
"Department for Business, Innovation and Skills",UK Shared Business Services Ltd,21/10/2022,Computer Hardware,DR Upgrade,CDW Ltd,99824860,"17,353.70",Computer Consumables,EC4M 7RB
"Department for Business, Innovation and Skills",UK Shared Business Services Ltd,21/10/2022,Computer Hardware,DR Upgrade,CDW Ltd,99824860,"8,203.56",Computer Consumables,EC4M 7RB
"Department for Business, Innovation and Skills",UK Shared Business Services Ltd,21/10/2022,Computer Hardware,Network Improvements,CDW Ltd,99824862,"12,092.07",Computer Consumables,EC4M 7RB
"Department for Business, Innovation and Skills",UK Shared Business Services Ltd,21/10/2022,Computer Hardware,Network Improvements,CDW Ltd,99824862,"3,218.30",Computer Consumables,EC4M 7RB
"Department for Business, Innovation and Skills",UK Shared Business Services Ltd,21/10/2022,Computer Hardware,Network Improvements,CDW Ltd,99824862,119.90,Computer Consumables,EC4M 7RB
"Department for Business, Innovation and Skills",UK Shared Business Services Ltd,21/10/2022,Computer Hardware,Network Improvements,CDW Ltd,99824862,"1,577.62",Computer Consumables,EC4M 7RB
"Department for Business, Innovation and Skills",UK Shared Business Services Ltd,21/10/2022,Computer Hardware,Network Improvements,CDW Ltd,99824862,126.19,Computer Consumables,EC4M 7RB
"Department for Business, Innovation and Skills",UK Shared Business Services Ltd,21/10/2022,Union Deductions,Balance Sheet,PCS Union,99824964,934.10,SSC THIRD PARTY PAYMENTS June2022,SW11 2LN
"Department for Business, Innovation and Skills",UK Shared Business Services Ltd,21/10/2022,T&S - Subsistence,D&I Management,Unspecified,99825897,47.51,Evening Meal (Actuals),HOME
"Department for Business, Innovation and Skills",UK Shared Business Services Ltd,21/10/2022,T&S - Public Transport,Partnership Management,Unspecified,99825899,2.80,Public Transport - Bus (Actuals),HOME
"Department for Business, Innovation and Skills",UK Shared Business Services Ltd,21/10/2022,T&S - Public Transport,Partnership Management,Unspecified,99825899,19.00,Public Transport - Taxi Fare (Actuals),HOME
"Department for Business, Innovation and Skills",UK Shared Business Services Ltd,21/10/2022,T&S - Public Transport,Partnership Management,Unspecified,99825899,12.60,Public Transport - Train (Actuals),HOME
"Department for Business, Innovation and Skills",UK Shared Business Services Ltd,21/10/2022,T&S - Subsistence,Partnership Management,Unspecified,99825899,16.86,Evening Meal (Actuals),HOME
"Department for Business, Innovation and Skills",UK Shared Business Services Ltd,21/10/2022,T&S - Subsistence,Partnership Management,Unspecified,99825899,8.59,Lunch (Actuals),HOME
"Department for Business, Innovation and Skills",UK Shared Business Services Ltd,21/10/2022,Health & Safety (inc. Medicals & Opticians),Operational Excellence,Unspecified,99825900,16.99,Medical Fees & Vaccinations (Actuals),HOME
"Department for Business, Innovation and Skills",UK Shared Business Services Ltd,24/10/2022,GPC Clearing - SSC,Balance Sheet,Unspecified,99823268,-171.30,Unspecified,HOME
"Department for Business, Innovation and Skills",UK Shared Business Services Ltd,24/10/2022,GPC Sundry Expenditure,D&I Management,Unspecified,99823268,171.30,GPC_Miscellaneous GPC Expenditure,HOME
"Department for Business, Innovation and Skills",UK Shared Business Services Ltd,24/10/2022,GPC Clearing - SSC,Balance Sheet,Unspecified,99823269,-338.20,Unspecified,HOME
"Department for Business, Innovation and Skills",UK Shared Business Services Ltd,24/10/2022,Hardware/Software Maintenance,Production Services,Unspecified,99823269,338.20,GPC_Computer Hardware/Software Maint,HOME
"Department for Business, Innovation and Skills",UK Shared Business Services Ltd,24/10/2022,Recruitment Costs,Corporate HR,Agenda Resource Management Ltd,99823687,154.91,Professional Services,HU12 8YJ
"Department for Business, Innovation and Skills",UK Shared Business Services Ltd,24/10/2022,Agency Staff,HR Ops,Hays Specialist Recruitment Ltd,99824069,790.68,Recruitment Services,KT3 4QF
"Department for Business, Innovation and Skills",UK Shared Business Services Ltd,24/10/2022,Data Storage & Recovery,Finance Operations 1,Restore plc,99824839,967.74,Computing Services,RH1 5DY
"Department for Business, Innovation and Skills",UK Shared Business Services Ltd,24/10/2022,Staff Training,HRSD Recoverables,Provek Ltd,99825235,"1,620.00",Training,RG19 4LW
"Department for Business, Innovation and Skills",UK Shared Business Services Ltd,24/10/2022,Contract Staff,SHARP,Alexander Mann Solutions Ltd,99825331,"3,387.66",Recruitment Services,EC2N 3AQ
"Department for Business, Innovation and Skills",UK Shared Business Services Ltd,24/10/2022,Contract Staff,D&I Management,Alexander Mann Solutions Ltd,99825404,"2,648.52",Recruitment Services,EC2N 3AQ
"Department for Business, Innovation and Skills",UK Shared Business Services Ltd,24/10/2022,Recruitment Costs,Production Services,Robert Half Ltd,99825971,"6,534.00",Recruitment Services,B37 7GN
"Department for Business, Innovation and Skills",UK Shared Business Services Ltd,24/10/2022,Contract Staff,Production Services,Alexander Mann Solutions Ltd,99826039,"3,465.30",Recruitment Services,EC2N 3AQ
"Department for Business, Innovation and Skills",UK Shared Business Services Ltd,25/10/2022,Hardware/Software Maintenance,Production Services,KTSL Ltd,99799814,146.26,Computer Consumables,SN13 9RS
"Department for Business, Innovation and Skills",UK Shared Business Services Ltd,25/10/2022,Hardware/Software Maintenance,Production Services,KTSL Ltd,99818195,146.26,Computer Consumables,SN13 0ZQ
"Department for Business, Innovation and Skills",UK Shared Business Services Ltd,25/10/2022,T&S - Other Charges,D&I Management,Unspecified,99825898,200.00,Home-working Equipment,HOME
"Department for Business, Innovation and Skills",UK Shared Business Services Ltd,25/10/2022,Legal & Professional Services,Finance Operations 2,Legal Recoveries and Collections Ltd,99826462,86.52,Professional Services,NG1 3BF
"Department for Business, Innovation and Skills",UK Shared Business Services Ltd,25/10/2022,T&S - Other Charges,D&I Management,Unspecified,99826520,"1,499.00",Miscellaneous (Actuals),HOME
"Department for Business, Innovation and Skills",UK Shared Business Services Ltd,25/10/2022,T&S - Parking Tolls Congestion Charges,D&I Management,Unspecified,99826521,8.00,"Parking, Tolls, Congestion Charge",HOME
"Department for Business, Innovation and Skills",UK Shared Business Services Ltd,25/10/2022,T&S - Subsistence,D&I Management,Unspecified,99826521,16.80,Lunch (Actuals),HOME
"Department for Business, Innovation and Skills",UK Shared Business Services Ltd,25/10/2022,T&S - Subsistence,Executive Function,Unspecified,99826522,69.80,Evening Meal (Actuals),HOME
"Department for Business, Innovation and Skills",UK Shared Business Services Ltd,25/10/2022,T&S - Subsistence,Executive Function,Unspecified,99826522,7.50,Lunch (Actuals),HOME
"Department for Business, Innovation and Skills",UK Shared Business Services Ltd,25/10/2022,T&S - Vehicle Hire,Executive Function,Unspecified,99826522,103.44,Vehicle Hire/Rental/Fuel (Actuals),HOME
"Department for Business, Innovation and Skills",UK Shared Business Services Ltd,25/10/2022,T&S - Mileage,D&I Operations,Unspecified,99826523,51.08,Mileage - Car (excl Home to Office),HOME
"Department for Business, Innovation and Skills",UK Shared Business Services Ltd,25/10/2022,T&S - Subsistence,D&I Operations,Unspecified,99826523,6.05,Lunch (Actuals),HOME
"Department for Business, Innovation and Skills",UK Shared Business Services Ltd,25/10/2022,T&S - Subsistence,D&I Infrastructure & Network Services,Unspecified,99826524,115.11,Evening Meal (Actuals),HOME
"Department for Business, Innovation and Skills",UK Shared Business Services Ltd,25/10/2022,T&S - Vehicle Hire,D&I Infrastructure & Network Services,Unspecified,99826524,53.39,Vehicle Hire/Rental/Fuel (Actuals),HOME
"Department for Business, Innovation and Skills",UK Shared Business Services Ltd,25/10/2022,UK - Professional Memberships & Subscriptions,"Risk, Information & Security Compliance",Unspecified,99826525,130.00,Professional Subscriptions (Actuals),HOME
"Department for Business, Innovation and Skills",UK Shared Business Services Ltd,25/10/2022,T&S - Parking Tolls Congestion Charges,Operational Excellence,Unspecified,99826526,10.00,"Parking, Tolls, Congestion Charge",HOME
"Department for Business, Innovation and Skills",UK Shared Business Services Ltd,26/10/2022,Computer Software,SIAM,Atlassian Pty Ltd,99824841,"22,355.16",Computing Software,Sydney
"Department for Business, Innovation and Skills",UK Shared Business Services Ltd,26/10/2022,Computer Software Licences,Production Services,Te-Con B.V.,99824953,"14,987.21",Computer Consumables,1072RG - EUR
"Department for Business, Innovation and Skills",UK Shared Business Services Ltd,26/10/2022,Contract Staff,Production Services,Alexander Mann Solutions Ltd,99825402,"2,740.74",Recruitment Services,EC2N 3AQ
"Department for Business, Innovation and Skills",UK Shared Business Services Ltd,26/10/2022,Staff Training,HRSD Recoverables,ASK Europe PLC,99826711,504.00,Training,MK43 0BT
"Department for Business, Innovation and Skills",UK Shared Business Services Ltd,26/10/2022,Staff Training,HRSD Recoverables,Indigo Business Services Ltd,99826714,"7,560.00",Training,TW9 2PR
"Department for Business, Innovation and Skills",UK Shared Business Services Ltd,26/10/2022,Computing Consumables,Production Services,Probrand Ltd,99826834,"10,380.60",Computer Consumables,SMARTFORM
"Department for Business, Innovation and Skills",UK Shared Business Services Ltd,26/10/2022,Computing Consumables,Production Services,Probrand Ltd,99826834,2.40,Computer Consumables,SMARTFORM
"Department for Business, Innovation and Skills",UK Shared Business Services Ltd,26/10/2022,Staff Training,HRSD Recoverables,ASK Europe PLC,99826855,840.00,Training,MK43 0BT
"Department for Business, Innovation and Skills",UK Shared Business Services Ltd,26/10/2022,Staff Training,HRSD Recoverables,ASK Europe PLC,99826864,840.00,Training,MK43 0BT
"Department for Business, Innovation and Skills",UK Shared Business Services Ltd,26/10/2022,T&S - Other Charges,Facilities,Unspecified,99827668,179.96,Home-working Equipment,HOME
"Department for Business, Innovation and Skills",UK Shared Business Services Ltd,26/10/2022,T&S - Public Transport,Operational Assurance,Unspecified,99827669,19.30,Public Transport - Taxi Fare (Actuals),HOME
"Department for Business, Innovation and Skills",UK Shared Business Services Ltd,26/10/2022,Health & Safety (inc. Medicals & Opticians),Tier 1 ROE Transactions,Unspecified,99827670,14.99,Medical Fees & Vaccinations (Actuals),HOME
"Department for Business, Innovation and Skills",UK Shared Business Services Ltd,26/10/2022,T&S - Parking Tolls Congestion Charges,Finance Operations 2,Unspecified,99827671,18.00,"Parking, Tolls, Congestion Charge",HOME
"Department for Business, Innovation and Skills",UK Shared Business Services Ltd,26/10/2022,T&S - Subsistence,Finance Operations 2,Unspecified,99827671,23.15,Evening Meal (Actuals),HOME
"Department for Business, Innovation and Skills",UK Shared Business Services Ltd,27/10/2022,T&S - Parking Tolls Congestion Charges,Project Office,Unspecified,99821395,8.00,"Parking, Tolls, Congestion Charge",HOME
"Department for Business, Innovation and Skills",UK Shared Business Services Ltd,27/10/2022,T&S - Public Transport,Project Office,Unspecified,99821395,8.20,Public Transport - Taxi Fare (Actuals),HOME
"Department for Business, Innovation and Skills",UK Shared Business Services Ltd,27/10/2022,Health & Safety (inc. Medicals & Opticians),Project Office,Unspecified,99821396,16.99,Medical Fees & Vaccinations (Actuals),HOME
"Department for Business, Innovation and Skills",UK Shared Business Services Ltd,27/10/2022,Recruitment Costs,Corporate HR,Agenda Resource Management Ltd,99827603,"1,641.46",Professional Services,HU12 8YJ
"Department for Business, Innovation and Skills",UK Shared Business Services Ltd,27/10/2022,Staff Training,HRSD Recoverables,ASK Europe PLC,99827840,840.00,Training,MK43 0BT
"Department for Business, Innovation and Skills",UK Shared Business Services Ltd,27/10/2022,UK - Professional Memberships & Subscriptions,People,C and D Group Ltd t/a Thrive Group,99828197,910.40,Professional Memberships,SN3 4UQ
"Department for Business, Innovation and Skills",UK Shared Business Services Ltd,27/10/2022,T&S - Mileage,D&I Operations,Unspecified,99828317,51.08,Mileage - Car (excl Home to Office),HOME
"Department for Business, Innovation and Skills",UK Shared Business Services Ltd,27/10/2022,T&S - Subsistence,D&I Operations,Unspecified,99828317,4.95,Lunch (Actuals),HOME
"Department for Business, Innovation and Skills",UK Shared Business Services Ltd,27/10/2022,Health & Safety (inc. Medicals & Opticians),Operational Excellence,Unspecified,99828318,77.00,Medical Fees & Vaccinations (Actuals),HOME
"Department for Business, Innovation and Skills",UK Shared Business Services Ltd,27/10/2022,T&S - Public Transport,Operational Excellence,Unspecified,99828318,19.70,Public Transport - Taxi Fare (Actuals),HOME
"Department for Business, Innovation and Skills",UK Shared Business Services Ltd,27/10/2022,T&S - Parking Tolls Congestion Charges,Operational Excellence,Unspecified,99828319,10.00,"Parking, Tolls, Congestion Charge",HOME
"Department for Business, Innovation and Skills",UK Shared Business Services Ltd,28/10/2022,T&S - Other Charges,UK SBS Data,Unspecified,99821177,200.00,Home-working Equipment,HOME
"Department for Business, Innovation and Skills",UK Shared Business Services Ltd,28/10/2022,Computer Software Licences,Production Services,Callagenix Ltd,99827763,184.80,Computer Consumables,SL7 2DX
"Department for Business, Innovation and Skills",UK Shared Business Services Ltd,28/10/2022,Computer Software Licences,Production Services,Callagenix Ltd,99827763,207.00,Computer Consumables,SL7 2DX
"Department for Business, Innovation and Skills",UK Shared Business Services Ltd,28/10/2022,Computing Consumables,Production Services,Probrand Ltd,99828072,"10,602.00",Computer Consumables,SMARTFORM
"Department for Business, Innovation and Skills",UK Shared Business Services Ltd,28/10/2022,Computing Consumables,Production Services,Probrand Ltd,99828072,6.00,Computer Consumables,SMARTFORM
"Department for Business, Innovation and Skills",UK Shared Business Services Ltd,28/10/2022,Staff Training,HRSD Recoverables,ASK Europe PLC,99829207,840.00,Training,MK43 0BT
"Department for Business, Innovation and Skills",UK Shared Business Services Ltd,31/10/2022,Computing Consumables,D&I Management,Unspecified,99826519,133.02,GPC_Computer Consumables,HOME
"Department for Business, Innovation and Skills",UK Shared Business Services Ltd,31/10/2022,GPC Clearing - SSC,Balance Sheet,Unspecified,99826519,-133.02,Unspecified,HOME
"Department for Business, Innovation and Skills",UK Shared Business Services Ltd,31/10/2022,Contract Staff,SHARP,Alexander Mann Solutions Ltd,99829320,"3,387.66",Recruitment Services,EC2N 3AQ
"Department for Business, Innovation and Skills",UK Shared Business Services Ltd,31/10/2022,Contract Staff,D&I Management,Alexander Mann Solutions Ltd,99829327,"3,972.78",Recruitment Services,EC2N 3AQ
"Department for Business, Innovation and Skills",UK Shared Business Services Ltd,31/10/2022,Agency Staff,ROE Application Upgrade,Alexander Mann Solutions Ltd,99829340,"8,180.88",Recruitment Services,EC2N 3AQ
"Department for Business, Innovation and Skills",UK Shared Business Services Ltd,31/10/2022,Contract Staff,People,Alexander Mann Solutions Ltd,99829344,"2,126.47",Recruitment Services,EC2N 3AQ
"Department for Business, Innovation and Skills",UK Shared Business Services Ltd,31/10/2022,Contract Staff,Production Services,Alexander Mann Solutions Ltd,99829347,"4,311.47",Recruitment Services,EC2N 3AQ
"Department for Business, Innovation and Skills",UK Shared Business Services Ltd,31/10/2022,Contract Staff,Production Services,Alexander Mann Solutions Ltd,99829360,"2,740.74",Recruitment Services,EC2N 3AQ
"Department for Business, Innovation and Skills",UK Shared Business Services Ltd,31/10/2022,Recruitment Costs,Production Services,Michael Page International Recruitment Limited T/A Page Personnel,99829371,"3,600.00",Recruitment Services,SL1 1QP
"Department for Business, Innovation and Skills",UK Shared Business Services Ltd,31/10/2022,T&S - Other Charges,Accounting,Unspecified,99829481,43.48,Miscellaneous (Actuals),HOME
"Department for Business, Innovation and Skills",UK Shared Business Services Ltd,31/10/2022,T&S - Parking Tolls Congestion Charges,Accounting,Unspecified,99829481,18.00,"Parking, Tolls, Congestion Charge",HOME
"Department for Business, Innovation and Skills",UK Shared Business Services Ltd,31/10/2022,T&S - Subsistence,Accounting,Unspecified,99829481,86.80,Evening Meal (Actuals),HOME
"Department for Business, Innovation and Skills",UK Shared Business Services Ltd,31/10/2022,T&S - Vehicle Hire,Accounting,Unspecified,99829481,87.39,Vehicle Hire/Rental/Fuel (Actuals),HOME
"Department for Business, Innovation and Skills",UK Shared Business Services Ltd,31/10/2022,T&S - Subsistence,Accounting,Unspecified,99829482,22.15,Evening Meal (Actuals),HOME
"Department for Business, Innovation and Skills",UK Shared Business Services Ltd,31/10/2022,T&S - Subsistence,Accounting,Unspecified,99829482,8.75,Lunch (Actuals),HOME
"Department for Business, Innovation and Skills",UK Shared Business Services Ltd,31/10/2022,UK - Professional Memberships & Subscriptions,Accounting,Unspecified,99829483,175.00,Professional Subscriptions (Actuals),HOME
"Department for Business, Innovation and Skills",UK Shared Business Services Ltd,31/10/2022,T&S - Other Charges,People,Unspecified,99829484,140.00,Home-working Equipment,HOME
"Department for Business, Innovation and Skills",UK Shared Business Services Ltd,31/10/2022,Computer Software,SIAM,Softcat plc,99830094,"4,081.97",Computing Software,SL7 1LW
"Department for Business, Innovation and Skills",UK Shared Business Services Ltd,31/10/2022,Computer Software,SIAM,Softcat plc,99830097,154.15,Computing Software,SL7 1LW
"Department for Business, Innovation and Skills",UK Shared Business Services Ltd,31/10/2022,Computer Software Licences,SIAM,Softcat plc,99830178,"1,860.07",Computing Software,SL7 1LW
"Department for Business, Innovation and Skills",UK Shared Business Services Ltd,31/10/2022,Computer Software Licences,Production Services,Softcat plc,99830179,"3,996.00",Computer Consumables,SL7 1LW
"Department for Business, Innovation and Skills",UK Shared Business Services Ltd,31/10/2022,Computer Software Licences,Production Services,Softcat plc,99830179,"21,888.00",Computer Consumables,SL7 1LW
"Department for Business, Innovation and Skills",UK Shared Business Services Ltd,31/10/2022,Computer Software Licences,Production Services,Softcat plc,99830179,"3,558.06",Computer Consumables,SL7 1LW
"Department for Business, Innovation and Skills",UK Shared Business Services Ltd,31/10/2022,Contract Staff,Production Services,Alexander Mann Solutions Ltd,99830182,"3,465.30",Recruitment Services,EC2N 3AQ
"Department for Business, Innovation and Skills",UK Shared Business Services Ltd,31/10/2022,Contract Staff,Production Services,Alexander Mann Solutions Ltd,99830188,"3,079.62",Recruitment Services,EC2N 3AQ
"Department for Business, Innovation and Skills",UK Shared Business Services Ltd,03/10/2022,Bank Charges,Corporate Finance,,,131.71,Bank Charges,
"Department for Business, Innovation and Skills",UK Shared Business Services Ltd,03/10/2022,Bank Charges,Corporate Finance,,,50.00,Bank Charges,
"Department for Business, Innovation and Skills",UK Shared Business Services Ltd,25/10/2022,Bank Charges,Corporate Finance,,,850.00,Bank Charges,
